fUST/lending_fUST_20241201
["ID","MTS","AMOUNT","RATE_DAILY","PERIOD"]
[343900000,1733014234998,-1317.02,0.00026024,3]
[343900001,1733014235008,-500.0,0.00026024,3]
[343900002,1733014235018,-656.29,0.00026024,3]
[343900003,1733014235027,-500.0,0.00026024,3]
[343900004,1733014235037,-500.0,0.00026024,3]
[343900005,1733014235046,-500.0,0.00026025,3]
[343900006,1733014235056,-500.0,0.00026025,3]
[343900007,1733014235066,-500.0,0.00026025,3]
[343900008,1733014235075,-500.0,0.00026025,3]
[343900009,1733014235086,-500.0,0.00026025,3]
[343900010,1733014235095,-500.0,0.00026025,3]
[343900011,1733014235104,-500.0,0.00026025,3]
[343900012,1733014235114,-500.0,0.00026025,3]
[343900013,1733014235124,-500.0,0.00026025,3]
[343900014,1733014235138,-500.0,0.00026025,3]
[343900015,1733014235147,-500.0,0.00026025,3]
[343900016,1733014235157,-500.0,0.00026025,3]
[343900017,1733014235167,-500.0,0.00026025,3]
[343900018,1733014235178,-500.0,0.00026025,3]
[343900019,1733014235188,-588.31,0.00026025,3]
[343900020,1733014235197,-500.0,0.00026025,3]
[343900021,1733014235206,-500.0,0.00026025,3]
[343900022,1733014235216,-500.0,0.00026027,3]
[343900023,1733014235225,-1517.37,0.00026027,3]
[343900024,1733014235234,-500.0,0.00026027,3]
[343900025,1733014235245,-644.14,0.00026027,3]
[343900026,1733014235254,-500.0,0.00026027,3]
[343900027,1733014235263,-500.0,0.00026298,3]
[343900028,1733014235276,-489.41720398,0.00026298,3]
[343900029,1733014235286,-500.0,0.00026298,3]
[343900030,1733014235296,-500.0,0.00026298,3]
[343900031,1733014235306,-500.0,0.00026298,3]
[343900032,1733014235315,-1592.4,0.00026298,3]
[343900033,1733014235325,-1465.19,0.00026298,3]
[343900034,1733014235335,-500.0,0.00026298,3]
[343900035,1733014235345,-500.0,0.00026298,3]
[343900036,1733014235355,-1317.02,0.00026298,3]
[343900037,1733014235364,-500.0,0.00026298,3]
[343900038,1733014235374,-656.29,0.00026298,3]
[343900039,1733014235383,-500.0,0.00026298,3]
[343900040,1733014235392,-500.0,0.00026298,3]
[343900041,1733014235403,-500.0,0.00026299,3]
[343900042,1733014235413,-258.84587779,0.00026299,3]
[343900043,1733014235423,-500.0,0.00026299,3]
[343900044,1733014235433,-500.0,0.00026299,3]
[343900045,1733014235442,-500.0,0.00026299,3]
[343900046,1733014235452,-500.0,0.00026299,3]
[343900047,1733014235462,-444.46913494,0.00026299,3]
[343900048,1733014235472,-500.0,0.00026299,3]
[343900049,1733014235482,-500.0,0.00026299,3]
[343900050,1733014235491,-500.0,0.00026299,3]
[343900051,1733014235501,-500.0,0.00026299,3]
[343900052,1733014235511,-500.0,0.00026299,3]
[343900053,1733014235522,-500.0,0.00026299,3]
[343900054,1733014235531,-500.0,0.00026299,3]
[343900055,1733014235541,-588.31,0.00026299,3]
[343900056,1733014235551,-244.41192998,0.00026299,3]
[343900057,1733014235562,-500.0,0.00026299,3]
[343900058,1733014235571,-500.0,0.00026301,3]
[343900059,1733014235581,-1517.37,0.00026301,3]
[343900060,1733014235591,-216.57773641,0.00026301,3]
[343900061,1733014235600,-644.14,0.00026301,3]
[343900062,1733014235610,-500.0,0.00026301,3]
[343900063,1733014235620,-300.0,0.000264,2]
[343900064,1733014235630,-395.76921148,0.00026473,2]
[343900065,1733014235640,-500.0,0.00026572,3]
[343900066,1733014235649,-500.0,0.00026572,3]
[343900067,1733014235659,-500.0,0.00026572,3]
[343900068,1733014235744,-1592.4,0.00026572,3]
[343900069,1733014235764,-500.0,0.00026572,3]
[343900070,1733014235776,-1465.19,0.00026572,3]
[343900071,1733014235786,-500.0,0.00026572,3]
[343900072,1733014235795,-1317.02,0.00026572,3]
[343900073,1733014235805,-460.49273204,0.00026572,3]
[343900074,1733014235815,-656.29,0.00026572,3]
[343900075,1733014235825,-500.0,0.00026572,3]
[343900076,1733014235834,-500.0,0.00026572,3]
[343900077,1733014235845,-500.0,0.00026573,3]
[343900078,1733014235855,-500.0,0.00026573,3]
[343900079,1733014235864,-500.0,0.00026573,3]
[343900080,1733014235874,-500.0,0.00026573,3]
[343900081,1733014235883,-500.0,0.00026573,3]
[343900082,1733014235893,-500.0,0.00026573,3]
[343900083,1733014235902,-500.0,0.00026573,3]
[343900084,1733014235913,-418.66675329,0.00026573,3]
[343900130,1733014243784,-500.0,0.00024928,3]
[343900131,1733014243794,-1169.27083333,0.00024929,3]
[343900132,1733014243803,-1169.27083333,0.00024929,3]
[343900133,1733014243812,-1169.27083333,0.00024931,3]
[343900134,1733014243821,-418.55223219,0.00025202,3]
[343900135,1733014243830,-243.36687817,0.00025749,2]
[343900136,1733014243839,-81.33324671,0.00026573,3]
[343900137,1733014243849,-500.0,0.00026573,3]
[343900138,1733014243861,-500.0,0.00026573,3]
[343900139,1733014243871,-500.0,0.00026573,3]
[343900140,1733014243881,-629.61418836,0.00026573,3]
[343900141,1733014243893,-588.31,0.00026573,3]
[343900142,1733014243903,-500.0,0.00026573,3]
[343900143,1733014243914,-500.0,0.00026575,3]
[343900144,1733014243925,-1517.37,0.00026575,3]
[343900145,1733014243936,-644.14,0.00026575,3]
[343900146,1733014243946,-500.0,0.00026575,3]
[343900147,1733014243955,-173.5314866,0.00026689,2]
[343900148,1733014243964,-420.0,0.0002672,2]
[343900150,1733014243974,-500.0,0.00026846,3]
[343900151,1733014243984,-500.0,0.00026846,3]
[343900152,1733014243993,-1592.4,0.00026846,3]
[343900154,1733014244002,-500.0,0.00026846,3]
[343900158,1733014244011,-1465.19,0.00026846,3]
[343900161,1733014244020,-500.0,0.00026846,3]
[343900162,1733014244030,-1317.02,0.00026846,3]
[343900163,1733014244039,-656.29,0.00026846,3]
[343900164,1733014244049,-500.0,0.00026846,3]
[343900165,1733014244058,-500.0,0.00026846,3]
[343900166,1733014244068,-500.0,0.00026847,3]
[343900167,1733014244077,-500.0,0.00026847,3]
[343900168,1733014244087,-500.0,0.00026847,3]
[343900169,1733014244096,-612.96223126,0.00026847,3]
[343900170,1733014244105,-500.0,0.00026847,3]
[343900171,1733014244114,-500.0,0.00026847,3]
[343900172,1733014244123,-500.0,0.00026847,3]
[343900173,1733014244136,-500.0,0.00026847,3]
[343900174,1733014244145,-500.0,0.00026847,3]
[343900175,1733014244155,-500.0,0.00026847,3]
[343900176,1733014244164,-285.77380553,0.00026847,3]
[343900177,1733014244175,-588.31,0.00026847,3]
[343900178,1733014244184,-500.0,0.00026847,3]
[343900179,1733014244193,-500.0,0.00026849,3]
[343900180,1733014244203,-1517.37,0.00026849,3]
[343900181,1733014244213,-644.14,0.00026849,3]
[343900182,1733014244223,-500.0,0.00026849,3]
[343900183,1733014244233,-2711.42028025,0.00027,10]
[343900184,1733014244242,-2000.0,0.00027,2]
[343900185,1733014244252,-500.0,0.0002712,3]
[343900186,1733014244261,-500.0,0.0002712,3]
[343900187,1733014244270,-1592.4,0.0002712,3]
[343900188,1733014244286,-500.0,0.0002712,3]
[343900189,1733014244295,-1465.19,0.0002712,3]
[343900190,1733014244304,-500.0,0.0002712,3]
[343900191,1733014244313,-1317.02,0.0002712,3]
[343900192,1733014244322,-656.29,0.0002712,3]
[343900193,1733014244335,-500.0,0.0002712,3]
[343900194,1733014244344,-500.0,0.0002712,3]
[343900195,1733014244354,-500.0,0.00027121,3]
[343900196,1733014244364,-572.89706198,0.00027121,3]
[343900197,1733014244373,-500.0,0.00027121,3]
[343900198,1733014244385,-500.0,0.00027121,3]
[343900199,1733014244394,-262.36647028,0.00027121,3]
[343900200,1733014244403,-500.0,0.00027121,3]
[343900201,1733014244412,-500.0,0.00027121,3]
[343900202,1733014244422,-500.0,0.00027121,3]
[343900203,1733014244432,-500.0,0.00027121,3]
[343900204,1733014244441,-588.31,0.00027121,3]
[343900205,1733014244450,-500.0,0.00027121,3]
[343900206,1733014244460,-500.0,0.00027123,3]
[343900207,1733014244469,-1517.37,0.00027123,3]
[343900208,1733014244478,-644.14,0.00027123,3]
[343900209,1733014244488,-500.0,0.00027123,3]
[343900210,1733014244497,-220.378059,0.00027139,2]
[343900211,1733014244506,-160.007867,0.00027139,2]
[343900212,1733014244516,-1391.73,0.000272,2]
[343900213,1733014244525,-395.76921147,0.00027364,2]
[343900214,1733014244534,-500.0,0.00027394,3]
[343900215,1733014244544,-500.0,0.00027394,3]
[343900216,1733014244554,-1592.4,0.00027394,3]
[343900217,1733014244565,-500.0,0.00027394,3]
[343900218,1733014244574,-1465.19,0.00027394,3]
[343900219,1733014244583,-500.0,0.00027394,3]
[343900220,1733014244593,-1317.02,0.00027394,3]
[343900221,1733014244602,-656.29,0.00027394,3]
[343900222,1733014244611,-500.0,0.00027394,3]
[343900223,1733014244620,-500.0,0.00027394,3]
[343900224,1733014244629,-500.0,0.00027395,3]
[343900225,1733014244638,-500.0,0.00027395,3]
[343900226,1733014244647,-500.0,0.00027395,3]
[343900227,1733014244656,-500.0,0.00027395,3]
[343900228,1733014244665,-500.0,0.00027395,3]
[343900229,1733014244674,-500.0,0.00027395,3]
[343900230,1733014244684,-500.0,0.00027395,3]
[343900231,1733014244693,-588.31,0.00027395,3]
[343900232,1733014244702,-500.0,0.00027395,3]
[343900233,1733014244711,-500.0,0.00027397,3]
[343900234,1733014244721,-1517.37,0.00027397,3]
[343900235,1733014244730,-500.0,0.00027397,2]
[343900236,1733014244739,-644.14,0.00027397,3]
[343900237,1733014244748,-584.34556198,0.00027397,3]
[343900238,1733014244757,-210.76647675,0.00027397,2]
[343900239,1733014244767,-300.0,0.000274,2]
[343900240,1733014244778,-2000.0,0.000275,3]
[343900241,1733014244789,-4090.15597142,0.000276,3]
[343900242,1733014244798,-151.0,0.000276,7]
[343900243,1733014244808,-478.85538664,0.00027615,2]
[343900244,1733014244818,-600.0,0.00027616,2]
[343900245,1733014244832,-500.0,0.00027668,3]
[343900246,1733014244842,-500.0,0.00027668,3]
[343900247,1733014244855,-1592.4,0.00027668,3]
[343900248,1733014244865,-500.0,0.00027668,3]
[343900249,1733014244875,-1465.19,0.00027668,3]
[343900250,1733014244884,-500.0,0.00027668,3]
[343900251,1733014244894,-1317.02,0.00027668,3]
[343900252,1733014244904,-656.29,0.00027668,3]
[343900253,1733014244914,-500.0,0.00027668,3]
[343900254,1733014244923,-500.0,0.00027668,3]
[343900255,1733014244932,-500.0,0.00027669,3]
[343900256,1733014244942,-500.0,0.00027669,3]
[343900257,1733014244951,-500.0,0.00027669,3]
[343900258,1733014244960,-151.0,0.00027669,7]
[343900259,1733014244969,-500.0,0.00027669,3]
[343900260,1733014244978,-500.0,0.00027669,3]
[343900261,1733014244987,-500.0,0.00027669,3]
[343900262,1733014244997,-500.0,0.00027669,3]
[343900263,1733014245007,-588.31,0.00027669,3]
[343900264,1733014245016,-500.0,0.00027669,3]
[343900265,1733014245025,-500.0,0.00027671,3]
[343900266,1733014245035,-1517.37,0.00027671,3]
[343900267,1733014245043,-644.14,0.00027671,3]
[343900268,1733014245052,-220.378059,0.00027767,2]
[343900269,1733014245061,-600.0,0.00027904,2]
[343900270,1733014245071,-228.37064794,0.00027942,3]
[343900271,1733014245080,-500.0,0.00027942,3]
[343900272,1733014245091,-1592.4,0.00027942,3]
[343900273,1733014245100,-500.0,0.00027942,3]
[343900274,1733014245110,-1465.19,0.00027942,3]
[343900275,1733014245119,-400.8669441,0.00027942,3]
[343900276,1733014245130,-1317.02,0.00027942,3]
[343900277,1733014245141,-656.29,0.00027942,3]
[343900278,1733014245150,-500.0,0.00027942,3]
[343900279,1733014245159,-500.0,0.00027942,3]
[343900280,1733014245169,-500.0,0.00027943,3]
[343900281,1733014245180,-500.0,0.00027943,3]
[343900282,1733014245189,-500.0,0.00027943,3]
[343900283,1733014245198,-500.0,0.00027943,3]
[343900284,1733014245208,-500.0,0.00027943,3]
[343900285,1733014245219,-500.0,0.00027943,3]
[343900286,1733014245228,-333.64313753,0.00027943,3]
[343900287,1733014245237,-588.31,0.00027943,3]
[343900288,1733014245247,-500.0,0.00027943,3]
[343900289,1733014245255,-500.0,0.00027945,3]
[343900290,1733014245264,-1517.37,0.00027945,3]
[343900291,1733014245274,-644.14,0.00027945,3]
[343900292,1733014245283,-160.0,0.00028097,3]
[343900293,1733014245292,-220.378059,0.00028105,2]
[343900294,1733014245302,-788.094,0.00028189,15]
[343900295,1733014245312,-600.0,0.00028192,2]
[343900296,1733014245321,-500.0,0.00028216,3]
[343900297,1733014245331,-1592.4,0.00028216,3]
[343900298,1733014245341,-500.0,0.00028216,3]
[343900299,1733014245351,-1465.19,0.00028216,3]
[343900300,1733014245360,-1317.02,0.00028216,3]
[343900301,1733014245369,-656.29,0.00028216,3]
[343900302,1733014245378,-500.0,0.00028216,3]
[343900303,1733014245387,-500.0,0.00028216,3]
[343900304,1733014245395,-500.0,0.00028217,3]
[343900305,1733014245405,-500.0,0.00028217,3]
[343900306,1733014245414,-500.0,0.00028217,3]
[343900307,1733014245423,-500.0,0.00028217,3]
[343900308,1733014245432,-500.0,0.00028217,3]
[343900309,1733014245441,-500.0,0.00028217,3]
[343900310,1733014245450,-588.31,0.00028217,3]
[343900311,1733014245460,-500.0,0.00028217,3]
[343900312,1733014245469,-500.0,0.00028219,3]
[343900313,1733014245478,-1517.37,0.00028219,3]
[343900314,1733014245487,-644.14,0.00028219,3]
[343900315,1733014245496,-500.0,0.00028219,3]
[343900316,1733014245505,-150.17,0.00028219,3]
[343900317,1733014245515,-395.76921147,0.00028255,2]
[343900318,1733014245525,-500.65911155,0.00028395,5]
[343900319,1733014245535,-300.0,0.000284,2]
[343900320,1733014245545,-500.0,0.000284,120]
[343900321,1733014245555,-220.378059,0.00028444,2]
[343900322,1733014245564,-600.0,0.00028479,2]
[343900323,1733014245573,-500.0,0.0002849,3]
[343900324,1733014245584,-1592.4,0.0002849,3]
[343900325,1733014245594,-500.0,0.0002849,3]
[343900326,1733014245603,-1465.19,0.0002849,3]
[343900327,1733014245702,-1317.02,0.0002849,3]
[343900328,1733014245712,-656.29,0.0002849,3]
[343900329,1733014245722,-500.0,0.0002849,3]
[343900330,1733014245732,-500.0,0.0002849,3]
[343900331,1733014245741,-165.35673304,0.00028491,3]
[343900332,1733014245751,-500.0,0.00028491,3]
[343900333,1733014245761,-500.0,0.00028491,3]
[343900334,1733014245771,-500.0,0.00028491,3]
[343900335,1733014245780,-500.0,0.00028491,3]
[343900336,1733014245790,-254.94452927,0.00028491,3]
[343900337,1733014245799,-588.31,0.00028491,3]
[343900338,1733014245811,-500.0,0.00028491,3]
[343900339,1733014245824,-500.0,0.00028493,3]
[343900340,1733014245833,-150.17,0.00028493,3]
[343900341,1733014245842,-500.0,0.00028493,3]
[343900342,1733014245852,-1517.37,0.00028493,3]
[343900343,1733014245860,-644.14,0.00028493,3]
[343900344,1733014245870,-220.518294,0.00028493,7]
[343900345,1733014245879,-173.5314866,0.00028548,2]
[343900346,1733014245888,-1903.13,0.000286,31]
[343900347,1733014245898,-1903.13,0.000286,31]
[343900348,1733014245907,-1903.13,0.000286,31]
[343900349,1733014245920,-1903.13,0.000286,31]
[343900350,1733014245930,-1903.13,0.000286,31]
[343900351,1733014245939,-1903.13,0.000286,31]
[343900352,1733014245949,-1903.13,0.000286,31]
[343900353,1733014245959,-1903.13,0.000286,31]
[343900354,1733014245968,-1903.13,0.000286,31]
[343900355,1733014245978,-1903.13,0.000286,31]
[343900356,1733014245987,-1903.13,0.000286,31]
[343900357,1733014245997,-1903.13,0.000286,31]
[343900358,1733014246007,-151.0,0.000286,7]
[343900359,1733014246016,-2000.0,0.000287,2]
[343900360,1733014246025,-2000.0,0.000287,2]
[343900361,1733014246035,-397.76838532,0.00028764,3]
[343900362,1733014246045,-1592.4,0.00028764,3]
[343900363,1733014246055,-500.0,0.00028764,3]
[343900364,1733014246065,-1465.19,0.00028764,3]
[343900365,1733014246075,-1317.02,0.00028764,3]
[343900366,1733014246084,-656.29,0.00028764,3]
[343900367,1733014246094,-370.33,0.00028764,3]
[343900368,1733014246103,-588.68539519,0.00028764,3]
[343900369,1733014246112,-500.0,0.00028765,3]
[343900370,1733014246122,-500.0,0.00028765,3]
[343900371,1733014246133,-500.0,0.00028765,3]
[343900372,1733014246143,-500.0,0.00028765,3]
[343900373,1733014246153,-588.31,0.00028765,3]
[343900374,1733014246162,-500.0,0.00028765,3]
[343900375,1733014246172,-500.0,0.00028767,3]
[343900377,1733014246181,-150.17,0.00028767,3]
[343900378,1733014246191,-500.0,0.00028767,3]
[343900380,1733014246201,-1517.37,0.00028767,3]
[343900382,1733014246211,-500.0,0.00028767,4]
[343900383,1733014246222,-644.14,0.00028767,3]
[343900384,1733014246232,-500.0,0.00028767,4]
[343900385,1733014246241,-500.0,0.00028767,4]
[343900387,1733014246251,-500.0,0.00028767,4]
[343900388,1733014246260,-282.01829562,0.00028767,4]
[343900389,1733014246270,-600.0,0.00028767,2]
[343900391,1733014246280,-587.0,0.00028957,2]
[343900392,1733014246291,-1441.10655156,0.0002898,17]
[343900393,1733014246301,-862.38645635,0.00029,2]
[343900394,1733014246310,-4920.97409451,0.00029,5]
[343900395,1733014246320,-1000.0,0.00029,120]
[343900396,1733014246330,-2000.0,0.00029,2]
[343900397,1733014246340,-1000.0,0.00029,20]
[343900398,1733014246350,-1903.13,0.00029,31]
[343900399,1733014246360,-1903.13,0.00029,31]
[343900400,1733014246370,-1903.13,0.00029,31]
[343900401,1733014246379,-1903.13,0.00029,31]
[343900403,1733014246389,-1903.13,0.00029,31]
[343900405,1733014246399,-1903.13,0.00029,31]
[343900407,1733014246409,-1903.13,0.00029,31]
[343900409,1733014246419,-1903.13,0.00029,31]
[343900410,1733014246427,-1903.13,0.00029,31]
[343900411,1733014246436,-1903.13,0.00029,31]
[343900413,1733014246447,-1903.13,0.00029,31]
[343900415,1733014246456,-1903.13,0.00029,31]
[343900417,1733014246465,-1903.13,0.00029,31]
[343900419,1733014246475,-1903.13,0.00029,31]
[343900420,1733014246484,-1903.13,0.00029,31]
[343900421,1733014246494,-1903.13,0.00029,31]
[343900423,1733014246503,-1903.13,0.00029,31]
[343900425,1733014246512,-1903.13,0.00029,31]
[343900426,1733014246522,-1903.13,0.00029,31]
[343900427,1733014246531,-1903.13,0.00029,31]
[343900428,1733014246541,-1903.13,0.00029,31]
[343900429,1733014246550,-1903.13,0.00029,31]
[343900430,1733014246561,-1903.13,0.00029,31]
[343900431,1733014246570,-1903.13,0.00029,31]
[343900432,1733014246580,-151.0,0.00029,7]
[343900433,1733014246590,-1592.4,0.00029038,3]
[343900434,1733014246599,-500.0,0.00029038,3]
[343900435,1733014246609,-1465.19,0.00029038,3]
[343900436,1733014246618,-1317.02,0.00029038,3]
[343900437,1733014246628,-656.29,0.00029038,3]
[343900438,1733014246637,-500.0,0.00029039,3]
[343900439,1733014246646,-500.0,0.00029039,3]
[343900440,1733014246655,-500.0,0.00029039,3]
[343900441,1733014246664,-500.0,0.00029039,3]
[343900442,1733014246675,-588.31,0.00029039,3]
[343900443,1733014246684,-500.0,0.00029039,3]
[343900444,1733014246694,-982.91709906,0.00029041,3]
[343900445,1733014246703,-500.0,0.00029041,3]
[343900446,1733014246713,-1517.37,0.00029041,3]
[343900447,1733014246722,-644.14,0.00029041,3]
[343900448,1733014246732,-456.03510689,0.00029041,120]
[343900449,1733014246785,-876.96489311,0.00029041,120]
[343900450,1733014246793,-600.0,0.00029055,2]
[343900451,1733014246802,-395.76921147,0.00029145,2]
[343900452,1733014246812,-951.0,0.00029197,120]
[343900453,1733014246821,-778.71176019,0.000292,2]
[343900454,1733014246830,-951.0,0.00029207,120]
[343900455,1733014246839,-951.0,0.00029217,120]
[343900456,1733014246848,-150.0,0.00029278,120]
[343900457,1733014246858,-1592.4,0.00029312,3]
[343900458,1733014246867,-500.0,0.00029312,3]
[343900459,1733014246877,-1465.19,0.00029312,3]
[343900460,1733014246886,-860.28538364,0.00029312,3]
[343900461,1733014246899,-456.73461636,0.00029312,3]
[343900462,1733014246908,-656.29,0.00029312,3]
[343900463,1733014246917,-417.59460961,0.00029313,3]
[343900464,1733014246929,-82.40539039,0.00029313,3]
[343900465,1733014246939,-500.0,0.00029313,3]
[343900466,1733014246948,-536.4448607,0.00029313,3]
[343900467,1733014246957,-500.0,0.00029313,3]
[343900468,1733014246967,-588.31,0.00029313,3]
[343900469,1733014246976,-500.0,0.00029313,3]
[343900470,1733014246986,-151.0,0.00029314,7]
[343900471,1733014246995,-500.0,0.00029315,3]
[343900472,1733014247005,-687.07113777,0.00029315,3]
[343900473,1733014247017,-316.49559678,0.00029315,3]
[343900544,1733015432064,-299.2479134,0.00019113,2]
[343900545,1733015432073,-195.24752935,0.00019306,2]
[343900546,1733015432083,-1169.27083333,0.0002,2]
[343900547,1733015432092,-4731.422616,0.00021,2]
[343900548,1733015432101,-440.54003,0.00023794,2]
[343900549,1733015432110,-179.960547,0.00024658,2]
[343900550,1733015432119,-300.0,0.00024914,2]
[343900551,1733015432128,-300.0,0.00024914,2]
[343900552,1733015432137,-9118.0,0.00024914,2]
[343900553,1733015432147,-426.48,0.00024916,3]
[343900554,1733015432156,-5713.22,0.00024916,10]
[343900555,1733015432165,-5368.89,0.00024916,10]
[343900556,1733015432174,-4474.08,0.00024916,10]
[343900557,1733015432183,-852.96,0.00024917,3]
[343900558,1733015432192,-213.24,0.00024917,3]
[343900559,1733015432202,-639.72,0.00024917,3]
[343900560,1733015432212,-500.0,0.00024924,3]
[343900561,1733015432221,-259.68172115,0.00024924,3]
[343900562,1733015432231,-500.0,0.00024924,3]
[343900563,1733015432244,-500.0,0.00024924,3]
[343900564,1733015432254,-500.0,0.00024924,3]
[343900565,1733015432264,-1028.55,0.00024924,3]
[343900566,1733015432275,-500.0,0.00024924,3]
[343900567,1733015432287,-500.0,0.00024924,3]
[343900568,1733015432297,-500.0,0.00024924,3]
[343900569,1733015432307,-500.0,0.00024924,3]
[343900570,1733015432317,-937.77,0.00024924,3]
[343900571,1733015432327,-500.0,0.00024924,3]
[343900573,1733015432344,-500.0,0.00024924,3]
[343900575,1733015432365,-500.0,0.00024924,3]
[343900577,1733015432383,-500.0,0.00024924,3]
[343900578,1733015432394,-5000.0,0.00024924,2]
[343900579,1733015432405,-500.0,0.00024924,3]
[343900580,1733015432414,-500.0,0.00024924,3]
[343900591,1733015432424,-500.0,0.00024924,3]
[343900594,1733015432540,-500.0,0.00024924,3]
[343900596,1733015432549,-437.38448068,0.00024924,3]
[343900597,1733015432559,-500.0,0.00024924,3]
[343900599,1733015432568,-587.94,0.00024924,3]
[343900600,1733015432578,-500.0,0.00024924,3]
[343900601,1733015432588,-500.0,0.00024924,3]
[343900602,1733015432599,-500.0,0.00024924,3]
[343900603,1733015432609,-500.0,0.00024924,3]
[343900604,1733015432619,-876.35078565,0.00024924,2]
[343900605,1733015432629,-215.5718346,0.00024925,2]
[343900606,1733015432639,-500.0,0.00024925,3]
[343900607,1733015432649,-500.0,0.00024925,3]
[343900608,1733015432658,-500.0,0.00024925,3]
[343900609,1733015432668,-500.0,0.00024925,3]
[343900610,1733015432679,-500.0,0.00024925,3]
[343900611,1733015432688,-500.0,0.00024925,3]
[343900612,1733015432697,-500.0,0.00024925,3]
[343900613,1733015432707,-500.0,0.00024925,3]
[343900614,1733015432716,-500.0,0.00024925,3]
[343900615,1733015432726,-500.0,0.00024925,3]
[343900616,1733015432738,-500.0,0.00024925,3]
[343900617,1733015432747,-500.0,0.00024925,3]
[343900618,1733015432756,-500.0,0.00024925,3]
[343900619,1733015432766,-500.0,0.00024925,3]
[343900620,1733015432775,-500.0,0.00024925,3]
[343900621,1733015432784,-500.0,0.00024925,3]
[343900622,1733015432794,-500.0,0.00024925,3]
[343900623,1733015432803,-508.81,0.00024925,3]
[343900624,1733015432813,-500.0,0.00024925,3]
[343900625,1733015432822,-506.22386728,0.00024925,3]
[343900626,1733015432831,-500.0,0.00024925,3]
[343900627,1733015432840,-500.0,0.00024925,3]
[343900628,1733015432850,-500.0,0.00024925,2]
[343900629,1733015432859,-500.0,0.00024925,3]
[343900630,1733015432868,-500.0,0.00024925,3]
[343900631,1733015432877,-908.07180407,0.00024925,2]
[343900632,1733015432887,-500.0,0.00024925,3]
[343900633,1733015432896,-500.0,0.00024925,3]
[343900634,1733015432906,-500.0,0.00024925,3]
[343900635,1733015432915,-500.0,0.00024925,3]
[343900636,1733015432924,-500.0,0.00024925,3]
[343900637,1733015432933,-500.0,0.00024926,3]
[343900638,1733015432943,-500.0,0.00024926,3]
[343900639,1733015432952,-500.0,0.00024926,3]
[343900640,1733015432961,-500.0,0.00024926,3]
[343900641,1733015432970,-500.0,0.00024926,3]
[343900642,1733015432980,-500.0,0.00024926,3]
[343900643,1733015432994,-364.1635837,0.00024926,3]
[343900644,1733015433005,-503.6188387,0.00024926,3]
[343900645,1733015433014,-500.0,0.00024926,3]
[343900646,1733015433024,-500.0,0.00024926,3]
[343900647,1733015433033,-500.0,0.00024926,3]
[343900648,1733015433043,-500.0,0.00024926,3]
[343900649,1733015433053,-500.0,0.00024926,3]
[343900650,1733015433063,-501.0370828,0.00024926,3]
[343900651,1733015433072,-500.0,0.00024926,3]
[343900652,1733015433082,-500.0,0.00024926,3]
[343900653,1733015433092,-500.0,0.00024926,3]